Cogmind - Beta 16.1 @@@ ROGUE MODE // 2026.03.10 @ 06:22:38 Player: OniAn Result: Destroyed by G-34 Mercenary with Small Laser Performance ------------- Evolutions (0) 0 Regions Visited (1) 200 Robots Destroyed (18) 90 Value Destroyed (318) 318 Prototype IDs (3) 60 Alien Tech Used (0) 0 Bonus (0) 0 TOTAL SCORE: 668 Bonus ------- None Cogmind --------- Core Integrity 0/250 Matter 300/300 Energy 125/125 System Corruption 0% Temperature Warning (300) Movement Treading (160) Location -10/Materials Parts ------- > --- POWER (1) -------- Light Ion Engine > --- PROPULSION (2) --- Light Treads Light Treads > --- UTILITY (2) ------ Medium Storage Unit Hardened Light Armor Plating > --- WEAPON (2) ------- Improved Medium Laser Improved Medium Laser > --- INVENTORY (10) --- Ion Engine Light Treads Light Treads Small Storage Unit Hardened Light Armor Plating Grenade Launcher Datajack Welding Torch Peak State ------------ > --- POWER ------------ Light Ion Engine > --- PROPULSION ------- Light Treads Light Treads > --- UTILITY ---------- Medium Storage Unit Hardened Light Armor Plating > --- WEAPON ----------- Improved Medium Laser Improved Medium Laser > --- INVENTORY -------- Ion Engine Light Treads Light Treads Small Storage Unit Hardened Light Armor Plating Grenade Launcher Datajack Welding Torch [Rating: 12] Favorites ----------- Power Ion Engine Engine Ion Engine Propulsion Light Treads Treads Light Treads Wheel Compact Wheel Utility Medium Storage Unit Storage Medium Storage Unit Protection Hardened Light Armor Plating Weapon Medium Laser Energy Gun Medium Laser Launcher Grenade Launcher Build | -11 -10 ------- Run | Yrd Mat Slots Evolved . | . . Power . | . . Propulsion . | . . Utility . | . . Weapon . | . . Parts Attached 16 | 7 9 Power 3 | 1 2 Engine 3 | 1 2 Core . | . . Reactor . | . . Propulsion 5 | 3 2 Treads 4 | 2 2 Leg . | . . Wheel 1 | 1 . Hover . | . . Flight . | . . Utility 3 | 1 2 Device . | . . Storage 2 | 1 1 Processor . | . . Hackware . | . . Protection 1 | . 1 Artifact . | . . Weapon 5 | 2 3 Energy Gun 4 | 2 2 Energy Cannon . | . . Ballistic Gun . | . . Ballistic Cannon . | . . Launcher 1 | . 1 Special Weapon . | . . Impact Weapon . | . . Slashing Weapon . | . . Piercing Weapon . | . . Special Melee Weapon . | . . Unidentified Prototypes . | . . Parts Lost 5 | . 5 Power 1 | . 1 Propulsion 2 | . 2 Utility . | . . Weapon 2 | . 2 Highest Loss Streak 3 | . 3 To Critical Strikes 1 | . 1 Average Backups 6 | . 6 Power . | . . Propulsion 2 | . 2 Utility 1 | . 1 Weapon 1 | . 1 Tool/Special . | . . Unused Backups 6 | . 6 Power 1 | . 1 Propulsion 2 | . 2 Utility 1 | . 1 Weapon . | . . Tool/Special 2 | . 2 Average Slot Usage (%) 91 | . 91 Engine 13 | . 13 Treads 26 | . 26 Storage 14 | . 14 Protection 7 | . 7 Energy Gun 27 | . 27 Peak Build Rating 12 | 6 12 Average Rating 8 | 4 8 On Entrance 3 | . 6 Avg Prop Armor Cover (%) . | . . Naked Turns . | . . Heaviest Build 24 | 14 24 Greatest Support 40 | 40 40 Greatest Overweight (x) 7 | . 7 Average Overweight (x) . | . . Largest Inventory Capacity 10 | 8 10 Average Capacity 9 | 7 9 Most Carried 10 | . 10 Average Carried 6 | . 6 Final Capacity 10 | 8 10 Final Carried 8 | . 8 Class Distribution -------------------- 100% | Mutant Dominant Class ---------------- Mutant | -10/Materials Resources | -11 -10 ----------- Run | Yrd Mat Matter Collected 426 | 245 181 Remotely . | . . Salvage Created 344 | . 344 Parts 28 | . 28 Haulers Intercepted . | . . Recyclers Shooed . | . . Parts Field Recycled . | . . Retrieved Matter . | . . Parts Self-Destructed . | . . Prevented . | . . Parts Restored . | . . Kills | -11 -10 ------- Run | Yrd Mat Combat Hostiles Destroyed 13 | . 13 Guns 9 | . 9 AOE 4 | . 4 Classes Destroyed 5 | . 5 Builder 2 | . 2 Operator 1 | . 1 Watcher 2 | . 2 Swarmer 8 | . 8 Grunt 5 | . 5 Best Kill Streak 9 | . 9 Combat Bots Only 8 | . 8 Max Kills in Single Turn 4 | . 4 Gunslinging . | . . Exploded 4 | . 4 Melee . | . . Uniques/NPCs Destroyed . | . . Combat | -11 -10 -------- Run | Yrd Mat Hostile Shots Fired 120 | . 120 Missed 24 | . 24 Hits 96 | . 96 Projectile 96 | . 96 Critical Strikes 3 | . 3 Damage Taken 966 | . 966 Core 254 | . 254 Absorbed by Shields . | . . Core Remaining (%) 100 | 100 . Volleys Fired 40 | . 40 Largest 2 | . 2 Hottest 112 | . 112 Shots Fired 79 | . 79 Gun 78 | . 78 Cannon . | . . Launcher 1 | . 1 Special . | . . Kinetic . | . . Thermal 78 | . 78 Explosive 1 | . 1 Electromagnetic . | . . Robot Hit Streak 4 | . 4 Robot Miss Streak 7 | . 7 Penetration Max . | . . Secondary Targets . | . . Shots Hit Robots 36 | . 36 Core Hits 22 | . 22 Critical Kills . | . . Critical Parts Destroyed . | . . Critical Strikes 2 | . 2 Burn 2 | . 2 Melee Attacks . | . . Impact . | . . Slashing . | . . Piercing . | . . Sneak Attacks . | . . Combat Hostiles . | . . Follow-up Attacks . | . . Damage Inflicted 754 | . 754 Guns 491 | . 491 Cannons . | . . Explosions 263 | . 263 Melee . | . . Ramming . | . . Kinetic . | . . Thermal 491 | . 491 Explosive 263 | . 263 Electromagnetic . | . . Impact . | . . Slashing . | . . Piercing . | . . Highest Corruption . | . . Average Corruption . | . . Corruption Purged . | . . Corruption Blocked . | . . Overload Shots . | . . Overflow Damage 10 | . 10 Projectiles . | . . Explosions 10 | . 10 Melee . | . . Knockbacks . | . . Impact . | . . Kinetic . | . . Secondary . | . . Self-Inflicted Damage 4 | . 4 Shots 1 | . 1 Rammed . | . . Targets Rammed . | . . Kicked . | . . Crushed . | . . Highest Temperature 616 | . 616 Average Temperature 199 | . 199 Received Heat Transfer 168 | . 168 Effects 15 | . 15 Shutdowns 2 | . 2 Energy Bleed 4 | . 4 Interference 2 | . 2 Matter Decay 1 | . 1 Damage (minor) 1 | . 1 Damage (major) 3 | . 3 Damage (core) 2 | . 2 Siege Activations . | . . Martial Activations . | . . Shielding Activations . | . . Robots Disrupted . | . . Combat Hostiles . | . . Robots Corrupted . | . . Combat Hostiles . | . . Parts Fried . | . . Impact Corruptions . | . . Robots Melted . | . . Combat Hostiles . | . . Parts Melted 2 | . 2 Heat Transferred 1406 | . 1406 Parts Sabotaged . | . . Parts Stolen . | . . Parts Stripped . | . . Power Chain Reactions . | . . Alert | -11 -10 ------- Run | Yrd Mat Maximum Alert Level . | . . Low Security (%) 100 | 100 100 Level 1 . | . . Level 2 . | . . Level 3 . | . . Level 4 . | . . Level 5 . | . . High Security . | . . Max Security . | . . Peak Influence 179 | . 179 Initial . | . . Average 52 | . 56 Influence Increases 381 | . 381 Destroy 0b10 Robot/C 260 | . 260 Destroy 0b10 Robot/NC 25 | . 25 Destroy Leader 54 | . 54 Successful Hack 9 | . 9 Disable Machine 15 | . 15 Destroy Structure 3 | . 3 Lose Combat Pursuer 15 | . 15 Influence Decreases 307 | . 307 Time Decay 257 | . 257 Lost Part 50 | . 50 Squads Dispatched 3 | . 3 Investigation 1 | . 1 Extermination . | . . Reinforcement 2 | . 2 Assault . | . . Garrison . | . . Intercept . | . . Searches Triggered . | . . Construction Impeded . | . . Haulers Reinforced . | . . Active Scanning Responses . | . . Cargo Convoy Interrupts . | . . Stealth | -11 -10 --------- Run | Yrd Mat Distress Signals . | . . Communications Jammed . | . . Distress Signals . | . . Times Spotted 21 | . 21 Peak Tracking Total 6 | . 6 Tactical Retreats 1 | . 1 Traps | -11 -10 ------- Run | Yrd Mat Traps Triggered 2 | . 2 Indirectly . | . . Trap Hack Attempts . | . . Triggered . | . . Disarmed . | . . Reprogrammed . | . . Reused . | . . Traps Extracted . | . . Installed . | . . Triggered . | . . Machines | -11 -10 ---------- Run | Yrd Mat Machines Disabled 1 | . 1 Max in Single Turn 1 | . 1 Machines Repaired . | . . Machines Dismantled . | . . Machines Sabotaged . | . . Overloaded Fab Kills . | . . Hacking | -11 -10 --------- Run | Yrd Mat Machines Accessed 4 | . 4 Terminals 4 | . 4 Fabricators . | . . Repair Stations . | . . Recycling Units . | . . Scanalyzers . | . . Garrison Access . | . . Total Hacks 11 | . 11 Successful 8 | . 8 Failed 3 | . 3 Catastrophic . | . . Database Lockouts . | . . Manual 3 | . 3 Terminals 11 | . 11 Fabricators . | . . Repair Stations . | . . Recycling Units . | . . Scanalyzers . | . . Garrison Access . | . . Terminal Hacks 5 | . 5 Robot Analysis 1 | . 1 Prototype ID Bank 2 | . 2 Locate Traps 1 | . 1 Recall Reinforcements 1 | . 1 Fabricator Hacks . | . . Repair Station Hacks . | . . Recycling Unit Hacks . | . . Scanalyzer . | . . Garrison Access Hacks . | . . Unauthorized Hacks 3 | . 3 Terminals 3 | . 3 Botnet 3 | . 3 Fabricators . | . . Repair Stations . | . . Recycling Units . | . . Scanalyzers . | . . Garrison Access . | . . Data Cores Recovered . | . . Used . | . . Hacking Detections 3 | . 3 Full Trace Events . | . . Feedback Events . | . . Feedback Blocked . | . . Robot Schematics Acquired . | . . Robots Built . | . . Authchips . | . . Time . | . . Total Robot Build Rating . | . . Part Schematics Acquired . | . . Parts Built . | . . Authchips . | . . Time . | . . Total Part Build Rating . | . . Part Studies Acquired . | . . Parts Repaired . | . . Time . | . . Parts Recycled . | . . Recycled Matter . | . . Retrieved Matter . | . . Retrieved Components . | . . Parts Scanalyzed . | . . Part Schematics Acquired . | . . Parts Damaged . | . . Bothacking | -11 -10 ------------ Run | Yrd Mat Used RIF Installer . | . . Robots Hacked . | . . Non-combat . | . . Combat . | . . Robot Hacks Applied . | . . Relay Couplers Released . | . . Fabnet Peak Effective % . | . . Robots Rewired . | . . Allies Hacked . | . . Hacks Repelled . | . . Allies | -11 -10 -------- Run | Yrd Mat Total Allies . | . . Largest Group . | . . Highest-Rated Group . | . . Highest-Rated Ally . | . . Total Orders . | . . Ally Attacks . | . . Total Damage . | . . Kills . | . . Allies Corrupted . | . . Allies Melted . | . . Intel | -11 -10 ------- Run | Yrd Mat Active Infowar (turns) . | . . Robot Analysis Total 1 | . 1 Derelict Logs Recovered . | . . Drone Launches . | . . Drone Recoveries . | . . Exploration | -11 -10 ------------- Run | Yrd Mat Turns Passed 1327 | 94 1233 Spaces Moved 723 | 57 666 Core 12 | 3 9 Treads 706 | 49 657 Legs . | . . Wheels 5 | 5 . Hover . | . . Flight . | . . Fastest Speed 50 | 50 160 Average Speed 162 | 148 163 Slowest Speed 400 | 160 400 Overloaded Moves . | . . Propulsion Burnouts . | . . Robots Hopped . | . . Potential Cave-ins . | . . Cave-ins Triggered . | . . Exploration Rate (%) 43 | 3 83 Regions Visited 1 Branch Regions . Pre-discovered Areas . | . . Known Exits Taken . | . . Unknown Exits Taken 1 | 1 . Scrap Searched . | . . Spaces Dug . | . . Terrain Destroyed 2 | . 2 Melee . | . . Projectile . | . . AOE 2 | . 2 Terrain Rammed . | . . Walls Destroyed . | . . Machines Disabled . | . . Actions | -11 -10 --------- Run | Yrd Mat Total 794 | 63 731 Wait . | . . Move 722 | 56 666 Hop . | . . Pick Up 11 | . 11 Fast Attach 9 | 6 3 Attach 5 | . 5 Detach 2 | . 2 Swap 4 | 1 3 Drop 1 | . 1 Fire 40 | . 40 Melee . | . . Ram . | . . Kick . | . . Crush . | . . Escape Stasis . | . . Rewire . | . . Trap . | . . Miscellaneous . | . . Route ------- -11/Scrapyard -10/Materials (discovered 3 exits: [*Mat x2] / [*Min]) History --------- Turn | Location | Event 35 | -11/Scrapyard | Discovered new exit (range 15) 95 | -11/Scrapyard | Entered Materials 305 | -10/Materials | Build established: Mutant 356 | -10/Materials | Discovered new exit (range 8) 651 | -10/Materials | Destroyed 8 combat bots 946 | -10/Materials | Core integrity fell below 50% 954 | -10/Materials | Core integrity fell below 20% 987 | -10/Materials | Lost 3 parts (1p2n) 1109 | -10/Materials | Discovered new exit (range 16) 1186 | -10/Materials | Discovered new exit (range 12) 1328 | -10/Materials | Destroyed by G-34 Mercenary with Small Laser Last Messages --------------- 01145_ T-07 Excavator is excavating. 01151_ Med. Laser destroyed. 01155_ T-07 Excavator is excavating. 01156_ G-34 Mercenary destroyed. 01159_ T-07 Excavator is excavating. 01161_ R-06 Scavenger collects Heat Sink. 01175_ Acquired 41 matter. 01186_ EXIT=FOUND 01258_ W-16 Scout destroyed. 01293_ Connecting with Terminal... >>Trojan(Botnet) Trojan loaded successfully. Testing... Terminal linked with 2 systems. Awaiting botnet instructions. >>Traps(Locate) Found 1 trap in 1 array: 1x Alarm Trap Map updated. 01316_ G-34 Mercenary destroyed. Map ----- +----------------------------------------------------+ | ???????# #?????????????????????? | | ???????# """" """" #?????????????????????? | | ???????# """" """" #?????????????????????? | | ???????# """" """" #???#####?????????????? | | #############+########## ##### #????? | | = < #????? | | =% ##### ### ######??####### | | ! #???# #?#####???##### # | | ################???# #?????????# # # | | = #????????????# #?????????# # """ # | | #????????????# #?????????# # """ # | | #????????????# #??######## # """ # | | #????????????# #??# # # | | #????????????# #??# + """ # | | +######????????????# #??# # """ # | | #######+######### #### #### # """ # | | #??# # # | | ^ #??# # # | | """ #??# # # | | """ ###+############## #??# ####### | | """ #????????????????# #??# ####### | | #?????????######## #??# # # | | #?????????#% # %#??# # # | | #?????????# T # #??# # # | | #?????????# # #??# # # | | #?????????#! % /@ #??# + # | | "T" #?????????# # #??# # # | | """ +????????# # #??# ######? | | #### ##????????########g! #??# # ? | | ???? #????????????????wa #?# # # | | ????? ??????????????? #?# # """ # | | ?????????????????????? T #?# # """=# | | ????????????????????^? #?# # """ # | | ?????????????????????### #?# # # | | ???? ????????????????#######?# + """ # | | ??? ????????????????????????# # "" # | | ??? ???????????????????????### # "" # | | ???# #?????????????????????????# # # | | ???# #?????????????????????????# # "Y" # | | ???# #?????????????????????????# # """ # | | ???# #??????????????????????#### ####### | | ??## ############???????????+ #??? | | ### #???????"???####+## #??? | | #???????"????# # #??? | | ######?? ????# !# #??? | | #??/????# # #??? | | % #?# #???# # #??? | | #?# #???# # #??? | | #?# #???# ! # #??? | | | #?# #???# # #??? | +----------------------------------------------------+ Best States ------------- Heat Dissipation 25 Energy Generation 10 Energy Capacity 250 Matter Stores 300 Matter Capacity 300 Sight Range 16 Terrain Scan Density 10 Armor Coverage 150 Evasion (%) 40 Recoil Reduction 2 Item Schematics ----------------- None Robot Schematics ------------------ None Fabricated ------------ Nothing Repaired ---------- Nothing Studied --------- None Alien Tech Used ----------------- None Achievements -------------- None Challenges ------------ None Game ------ Seed TrackerPotentialCharge Manual? 0 Play Time 00:10:15 Cumulative 48.7 hours Start 2026.03.10 @ 06:14:05 End 2026.03.10 @ 06:22:38 Sessions 1 Manual Loads 0 Difficulty Rogue Special Mode None Game No. 68 Rogue 44 Adventurer 24 Explorer 0 Win Type - Total 0 Types 0/0/0/0/0/0/0/0/0/0 Lore% 33 Gallery% 29 Achievement% 23 Wizard Run 0 Options --------- Layout 1 ASCII 0 Keyboard 1 Movement Arrows Keybinds 0 Fullscreen 1 Font 24/Smallcaps Map View 50x35 Zoom Use 0% Tactical HUD 1 Map Filters NONE Filters NONE Steam 1 RUN: 1f95464b-b1e1-4b30-a154-77c631f31739